lending/lending_fUSD_20240605
["ID","MTS","AMOUNT","RATE_DAILY","PERIOD"]
[328583248,1717567842869,-2000.0,0.000293,2]
[328583249,1717567842878,-200.0,0.000293,2]
[328583250,1717567842887,-1559.37630592,0.000293,2]
[328583251,1717567842898,-510.20555382,0.000293,2]
[328583252,1717567842909,-1220.00000001,0.000293,2]
[328583253,1717567843011,-2267.5,0.000293,2]
[328583254,1717567843022,-5946.10537256,0.000293,2]
[328583255,1717567843034,-1019.76015176,0.000293,2]
[328583256,1717567843045,-923.77784,0.000293,2]
[328583257,1717567843112,-826.25901472,0.000293,2]
[328583258,1717567843124,-977.79543901,0.000293,2]
[328583259,1717567843136,-707.62966529,0.000293,2]
[328583294,1717567845833,-35512.0796249,0.000293,2]
[328583296,1717567845844,-21276.9697937,0.000293,2]
[328583297,1717567845958,-462.26350656,0.000293,2]
[328583298,1717567845970,-1376.84603702,0.000293,2]
[328583299,1717567846071,-322.9200001,0.000293,2]
[328583300,1717567846084,-496.49868244,0.000293,2]
[328583301,1717567846095,-1333.14755087,0.000293,2]
[328583304,1717568044595,-155.0,0.00013998,2]
[328583305,1717568044619,-2334.89595111,0.00013999,2]
[328583306,1717568044642,-582.0,0.00014,2]
[328583308,1717568341695,-155.0,0.00017259,2]
[328583309,1717568345864,220.29473789,0.00017807,2]
[328583310,1717568371416,436.25186787,0.00017807,2]
[328583311,1717568532623,2334.89595111,0.00017259,2]
[328583314,1717568771334,155.0,0.00017259,2]
[328583317,1717568829903,155.0,0.00017807,2]
[328583326,1717568883487,436.25186787,0.00017807,2]
[328583346,1717569032031,-155.61,0.00024384,2]
[328583347,1717569032041,-170.16,0.00024384,2]
[328583348,1717569032050,-93.13217464,0.00025,2]
[328583349,1717569032061,-1156.86782536,0.00025,2]
[328583350,1717569032072,-558.03,0.00025206,2]
[328583351,1717569032081,-155.0,0.00026616,2]
[328583352,1717569032090,-281.26010074,0.00026617,2]
[328583353,1717569032101,-838.79499596,0.00026617,2]
[328583354,1717569032111,-1927.37,0.00026617,14]
[328583355,1717569032120,-752.05039497,0.00026618,2]
[328583356,1717569032128,-176.31867568,0.00026618,2]
[328583357,1717569032137,-816.44,0.00026856,2]
[328583358,1717569032147,-250.0,0.00026911,2]
[328583359,1717569032156,-1000.0,0.00026955,2]
[328583360,1717569032168,-609.91467185,0.00027,2]
[328583361,1717569032180,-390.08532815,0.00027,2]
[328583362,1717569032189,-109.91467185,0.00027,2]
[328583363,1717569032201,-424.54627044,0.00027,2]
[328583364,1717569032213,-765.53905771,0.00027,2]
[328583365,1717569032222,-1921.25830582,0.00027,2]
[328583366,1717569032245,-259.86200001,0.00027,2]
[328583367,1717569032258,-357.4799971,0.00027,2]
[328583368,1717569032269,-781.95019923,0.00027,2]
[328583369,1717569032280,-705.64104327,0.00027,2]
[328583370,1717569032290,-849.9,0.00027021,2]
[328583371,1717569032299,-244.28,0.00027046,2]
[328583372,1717569032307,-250.0,0.00027063,2]
[328583373,1717569032319,-80.62880961,0.00027085,2]
[328583374,1717569032331,-169.37119039,0.00027085,2]
[328583375,1717569032342,-657.76593246,0.00027148,2]
[328583376,1717569032355,-1987.00406754,0.00027148,2]
[328583377,1717569032365,-516.15976631,0.0002739,2]
[328583378,1717569032376,-558.03,0.0002747,2]
[328583379,1717569032386,-549.246401,0.000275,3]
[328583380,1717569032395,-500.0,0.000279,2]
[328583381,1717569032404,-1000.0,0.00028,3]
[328583397,1717569032569,-296.652671,0.00028214,7]
[328583399,1717569032578,-158.181127,0.00028214,7]
[328583401,1717569032587,-500.0,0.00028563,2]
[328583403,1717569032596,-504.0,0.00028563,2]
[328583404,1717569032605,-1826.13124598,0.0002879,5]
[328583405,1717569032614,-2561.0,0.000288,2]
[328583406,1717569032623,-200.0,0.000289,10]
[328583407,1717569032633,-2000.0,0.00029,5]
[328583408,1717569032642,-1350.0,0.00029,2]
[328583409,1717569032650,-500.0,0.00029,10]
[328583410,1717569032660,-7319.00897126,0.00029,2]
[328583411,1717569032669,-837.05545,0.0002901,2]
[328583412,1717569032679,-5146.1529,0.0002903,2]
[328583413,1717569032688,-1085.867,0.000291,2]
[328583414,1717569032698,-1606.45597968,0.000291,15]
[328583415,1717569032707,-800.0,0.000291,10]
[328583416,1717569032717,-2500.0,0.000291,2]
[328583417,1717569032726,-1606.45597959,0.00029189,15]
[328583418,1717569032735,-690.48,0.0002919,3]
[328583419,1717569032745,-373.637055,0.000292,2]
[328583420,1717569032754,-88979.14778329,0.000292,2]
[328583421,1717569032766,-544.0998858,0.000292,2]
[328583422,1717569032777,-667.36237526,0.000292,2]
[328583423,1717569032797,-9809.38995565,0.000292,2]
[328583424,1717569032807,-117951.3688,0.000292,2]
[328583425,1717569032816,-1100.0,0.000292,10]
[328583426,1717569032826,-354.04625441,0.000292,2]
[328583427,1717569032836,-1606.45597959,0.00029278,15]
[328583428,1717569032846,-187.30573308,0.00029299,2]
[328583429,1717569032856,-5889.05435153,0.00029299,2]
[328583430,1717569032865,-109629.06853094,0.000293,2]
[328583431,1717569032877,-63631.79693038,0.000293,2]
[328583432,1717569032887,-599.41138174,0.000293,2]
[328583433,1717569032896,-168.73168778,0.000293,2]
[328583434,1717569032906,-1040.82619804,0.000293,2]
[328583435,1717569032915,-257.8719227,0.000293,2]
[328583436,1717569032925,-14401.95210911,0.000293,2]
[328583437,1717569032935,-1400.0,0.000293,10]
[328583438,1717569032944,-155.4508681,0.00029323,2]
[328583439,1717569032954,-500.0,0.00029341,2]
[328583440,1717569032964,-1000.0,0.00029342,30]
[328583441,1717569032974,-500.0,0.00029342,2]
[328583442,1717569032983,-200.0,0.00029342,2]
[328583443,1717569032992,-216.0,0.00029356,2]
[328583444,1717569033002,-1304.0,0.00029356,2]
[328583445,1717569033011,-150.0,0.00029356,2]
[328583446,1717569033020,-3171.0,0.00029356,2]
[328583447,1717569033030,-545.0,0.00029356,2]
[328583448,1717569033039,-5772.0,0.00029356,2]
[328583449,1717569033048,-289.0,0.00029356,2]
[328583450,1717569033058,-5147.0,0.00029356,2]
[328583451,1717569033068,-12488.351,0.00029356,2]
[328583452,1717569033077,-155.20486146,0.00029358,2]
[328583453,1717569033087,-1606.45597959,0.00029367,15]
[328583454,1717569033096,-4832.4383689,0.0002937,8]
[328583455,1717569033105,-25000.0,0.00029383,2]
[328583456,1717569033114,-151.0,0.00029383,7]
[328583457,1717569033124,-151.0,0.00029383,7]
[328583458,1717569033134,-151.0,0.00029383,7]
[328583459,1717569033144,-151.0,0.00029383,7]
[328583460,1717569033153,-315.0,0.00029385,2]
[328583461,1717569033163,-159.16027684,0.000294,2]
[328583462,1717569033174,-200.0,0.000294,10]
[328583463,1717569033187,-156.35946452,0.000294,2]
[328583464,1717569033197,-837.05545,0.0002941,2]
[328583465,1717569033206,-159.16027683,0.0002942,2]
[328583466,1717569033216,-159.16027683,0.0002944,2]
[328583467,1717569033225,-1606.45597959,0.00029456,15]
[328583468,1717569033234,-159.16027683,0.0002946,2]
[328583469,1717569033243,-7115.0,0.00029463,7]
[328583470,1717569033254,-214.7575,0.00029478,2]
[328583471,1717569033264,-188.01944471,0.00029478,2]
[328583472,1717569033273,-201.13691548,0.00029478,2]
[328583473,1717569033283,-5039.88585757,0.00029478,2]
[328583474,1717569033291,-159.16027683,0.0002948,2]
[328583475,1717569033301,-194.07100218,0.0002948,2]
[328583476,1717569033310,-1877.22714404,0.0002948,2]
[328583477,1717569033321,-569.06117618,0.0002948,2]
[328583478,1717569033332,-521.76760321,0.00029488,2]
[328583479,1717569033342,-10000.0,0.00029489,2]
[328583480,1717569033351,-269.5577641,0.0002949,2]
[328583481,1717569033360,-150.0,0.00029499,2]
[328583482,1717569033370,-142348.03832129,0.000295,2]
[328583486,1717569037788,-165.0,0.00029356,2]
[328583487,1717569037809,-2402.0,0.00029356,2]
[328583488,1717569037819,-151.0,0.00029478,7]
[328583489,1717569037830,-1319.18368649,0.000295,2]
[328583490,1717569037902,-3793.09474584,0.000295,2]
[328583505,1717569041110,-808.0,0.00029356,2]
[328583506,1717569041120,-32075.68324638,0.000295,2]
[328583507,1717569041129,-7626.0,0.000295,2]
[328583508,1717569041139,-1751.853779,0.000295,2]
[328583509,1717569041148,-501.0,0.000295,13]
[328583510,1717569041157,-345.0,0.000295,2]
[328583511,1717569041167,-200.0,0.000295,10]
[328583512,1717569041180,-151.0,0.000295,7]
[328583513,1717569041194,-151.0,0.000295,7]
[328583514,1717569041203,-151.0,0.000295,7]
[328583515,1717569041214,-150.0,0.000295,6]
[328583516,1717569041224,-151.0,0.000295,7]
[328583517,1717569041234,-5039.88585749,0.00029516,2]
[328583518,1717569041244,-1606.45597959,0.00029544,15]
[328583519,1717569041255,-150.5,0.0002955,15]
[328583520,1717569041265,-5039.88585749,0.00029555,2]
[328583521,1717569041274,-153.9870114,0.00029558,2]
[328583522,1717569041283,-150.5,0.0002956,15]
[328583523,1717569041292,-150.0,0.00029562,7]
[328583524,1717569041302,-662.5339406,0.00029569,2]
[328583525,1717569041311,-261.5127536,0.00029569,2]
[328583526,1717569041321,-150.5,0.0002957,15]
[328583527,1717569041331,-150.5,0.0002957,15]
[328583528,1717569041340,-98366.2417543,0.00029575,2]
[328583529,1717569041349,-151.0,0.00029575,7]
[328583530,1717569041359,-151.0,0.00029575,7]
[328583531,1717569041369,-151.0,0.00029575,7]
[328583532,1717569041378,-169.30763268,0.00029576,2]
[328583533,1717569041388,-4536.91288282,0.00029576,2]
[328583534,1717569041397,-1283.37876465,0.00029576,2]
[328583535,1717569041406,-161.70619944,0.00029576,2]
[328583536,1717569041416,-805.76645624,0.00029576,2]
[328583537,1717569041426,-382.39302428,0.00029576,2]
[328583538,1717569041435,-561.53636713,0.00029576,2]
[328583539,1717569041445,-5128.65084927,0.00029577,2]
[328583540,1717569041454,-217.40512422,0.00029577,2]
[328583541,1717569041464,-500.0,0.00029577,2]
[328583542,1717569041473,-151.77568994,0.00029577,2]
[328583543,1717569041483,-438.19014535,0.00029577,2]
[328583544,1717569041494,-500.0,0.00029577,2]
[328583545,1717569041503,-435.32487369,0.00029577,2]
[328583546,1717569041512,-500.0,0.00029577,2]
[328583547,1717569041522,-500.0,0.00029577,2]
[328583548,1717569041532,-500.0,0.00029577,2]
[328583549,1717569041542,-500.0,0.00029577,2]
[328583550,1717569041552,-587.94065568,0.00029577,2]
[328583551,1717569041561,-500.0,0.00029577,2]
[328583552,1717569041570,-500.0,0.00029577,2]
[328583553,1717569041580,-500.0,0.00029577,2]
[328583554,1717569041589,-500.0,0.00029577,2]
[328583555,1717569041599,-500.0,0.00029577,2]
[328583556,1717569041609,-359.99958236,0.00029577,2]
[328583557,1717569041619,-201.84778355,0.00029577,2]
[328583558,1717569041629,-159.0,0.00029578,5]
[328583559,1717569041638,-224249.36756137,0.00029578,13]
[328583571,1717569042974,-66250.1930575,0.00029578,13]
[328583573,1717569042984,-1353.12939317,0.00029578,2]
[328583574,1717569042993,-1480.62032495,0.00029578,2]
[328583575,1717569043003,-575.12383333,0.00029578,2]
[328583576,1717569043012,-1487.32527952,0.00029578,2]
[328583577,1717569043021,-1341.42761012,0.00029578,2]
[328583578,1717569043031,-720.98832443,0.00029578,2]
[328583579,1717569043041,-13641.19218198,0.00029578,2]
[328583580,1717569043280,-4.149e-05,0.00029578,2]
[328583581,1717569043303,-179.70517607,0.00029568,2]
[328583582,1717569043312,-179.70517607,0.00029568,2]
[328583583,1717569043322,-10612.7634024,0.00029578,2]
[328583584,1717569043333,-2702.48577455,0.00029578,2]
[328583585,1717569043344,-6163.16933815,0.00029578,2]
[328583586,1717569043377,-179.70517607,0.0002957,2]
[328583587,1717569043386,-4935.59927619,0.00029578,2]
[328583588,1717569044482,-1626.3345,0.00029578,2]
[328583593,1717569048896,-446.0,0.00029356,2]
[328583594,1717569048907,-1651.07245401,0.00029475,15]
[328583595,1717569048916,-2162.50754599,0.00029577,2]
[328583596,1717569049060,-335.55767404,0.00029577,2]
[328583597,1717569059851,1900.16906214,0.00017259,2]
[328583598,1717569060293,1252.30935523,0.00017259,2]
[328583599,1717569063519,2608.61583779,0.00017451,2]
[328583600,1717569066005,179.2509299,0.00017807,2]
[328583601,1717569073122,287.16239097,0.00017807,2]
[328583602,1717569075501,155.0,0.00017259,2]
[328583603,1717569088262,209.3249809,0.00017259,2]
[328583604,1717569117626,2006.2381672,0.00017259,2]
[328583605,1717569122107,201.51061122,0.00017259,2]
[328583607,1717569223667,135416.84947386,0.00014,2]
[328583611,1717569402107,178483.57162103,0.00014,2]
[328583614,1717569539979,155.0,0.00017807,2]
[328583621,1717570017543,155.0,0.00017533,2]
[328583682,1717570232236,-5585.03079939,0.000199,2]
[328583683,1717570232248,-10171.31580061,0.000199,2]
[328583688,1717570232434,-446.60502179,0.0002,2]
[328583689,1717570232444,-226.57668191,0.000201,2]
[328583690,1717570232453,-737.05590411,0.000219,2]
[328583691,1717570232463,-663.78,0.00024203,2]
[328583692,1717570232472,-183.34,0.00024384,2]
[328583693,1717570232481,-364.24,0.00024384,2]
[328583694,1717570232491,-499.99,0.00024384,2]
[328583695,1717570232500,-161.55,0.00024384,2]
[328583696,1717570232509,-1011.1,0.00024384,2]
[328583697,1717570232519,-150.0,0.00024986,2]
[328583698,1717570232528,-1386.41,0.00024986,2]
[328583699,1717570232537,-18790.26847491,0.00025,2]
[328583700,1717570232549,-1000.0,0.00025253,2]
[328583701,1717570232560,-999.99,0.00025254,2]
[328583702,1717570232569,-937.28,0.00025905,2]
[328583703,1717570232579,-155.0,0.0002594,2]
[328583704,1717570232589,-35657.61,0.00025941,2]
[328583705,1717570232599,-1852.42,0.00025971,2]
[328583706,1717570232607,-1000.0,0.00026033,2]
[328583707,1717570232618,-203.56,0.00026088,2]
[328583708,1717570232631,-500.0,0.00026088,2]
[328583709,1717570232643,-1219.12,0.0002639,2]
[328583710,1717570232652,-236.06,0.00026439,2]
[328583711,1717570232661,-663.78,0.00026467,2]
[328583713,1717570232671,-491.22,0.00026479,2]
[328583715,1717570232680,-1913.89,0.00026487,2]
[328583717,1717570232689,-942.88,0.00026506,2]
[328583719,1717570232698,-250.0,0.00026648,2]
[328583721,1717570232707,-150.0,0.00026675,2]
[328583723,1717570232716,-491.31,0.00026675,2]
[328583725,1717570232725,-250.0,0.00026756,2]
[328583727,1717570232734,-250.0,0.00026846,2]
[328583728,1717570232743,-1220.24,0.00026888,2]
[328583731,1717570232752,-178.72,0.00026911,2]
[328583732,1717570232762,-23890.0,0.00026922,2]
[328583735,1717570232771,-194.1,0.00026994,2]
[328583737,1717570232780,-4026.19154543,0.00027,2]
[328583739,1717570232789,-4353.96,0.00027031,2]
[328583741,1717570232799,-335.04,0.00027107,2]
[328583742,1717570232808,-187.83,0.00027146,2]
[328583744,1717570232818,-804.02580458,0.0002739,2]
[328583747,1717570232827,-3007.671336,0.0002739,2]
[328583749,1717570232838,-1094.73660363,0.00028097,2]
[328583751,1717570232847,-937.28,0.00028645,2]
[328583753,1717570232856,-707.0,0.000287,2]
[328583755,1717570232865,-663.78,0.00028731,2]
[328583757,1717570232874,-2305.0,0.000288,2]
[328583759,1717570232883,-180.10692011,0.0002885,2]
[328583761,1717570232892,-2807.01235113,0.00028941,2]
[328583762,1717570232901,-929.09920929,0.00028984,2]
[328583763,1717570232910,-72574.84307592,0.00029,2]
[328583764,1717570232919,-104183.81479636,0.00029041,2]
[328583765,1717570232928,-2807.01235108,0.00029048,15]
[328583766,1717570232936,-334.69666668,0.00029099,2]
[328583767,1717570232946,-5634.1368,0.000291,2]
[328583768,1717570232955,-103975.12094137,0.0002913,10]
[328583879,1717570238275,-778.63202683,0.0002913,10]
[328583880,1717570238289,-1891.17,0.0002913,10]
[328583881,1717570238300,-36014.51911402,0.0002913,10]
[328583882,1717570238491,-394.78702431,0.0002913,10]
[328583883,1717570238715,-439.45564214,0.0002913,10]
[328584024,1717570242404,-99498.72680865,0.0002913,10]
[328584025,1717570242414,-2807.01235108,0.00029154,15]
[328584026,1717570242423,-1088.40432289,0.00029199,5]
[328584027,1717570242433,-317.40981312,0.0002926,2]
[328584028,1717570242443,-2807.01235108,0.00029261,15]
[328584029,1717570242452,-2201.70476,0.0002928,2]
[328584030,1717570242462,-1000.0,0.00029287,2]
[328584031,1717570242473,-410.0,0.00029324,2]
[328584032,1717570242483,-211.0,0.00029324,2]
[328584033,1717570242493,-977.0,0.00029324,2]
[328584034,1717570242504,-2402.0,0.00029324,2]
[328584035,1717570242514,-446.0,0.00029324,2]
[328584036,1717570242522,-808.0,0.00029324,2]
[328584037,1717570242531,-151.063,0.00029324,2]
[328584038,1717570242540,-165.0,0.00029324,2]
[328584039,1717570242549,-216.0,0.00029324,2]
[328584040,1717570242563,-1304.0,0.00029324,2]
[328584041,1717570242572,-150.0,0.00029324,2]
[328584042,1717570242580,-3171.0,0.00029324,2]
[328584043,1717570242590,-5774.0,0.00029324,2]
[328584044,1717570242602,-5147.0,0.00029324,2]
[328584045,1717570242611,-289.0,0.00029324,2]
[328584046,1717570242621,-1064.0,0.00029324,2]
[328584047,1717570242630,-500.0,0.0002934,2]
[328584048,1717570242641,-500.0,0.00029341,2]
[328584049,1717570242654,-200.0,0.00029341,2]
[328584050,1717570242663,-2807.01235108,0.00029367,15]
[328584051,1717570242672,-153.78842655,0.00029368,2]
[328584052,1717570242682,-153.9870114,0.0002937,2]
[328584053,1717570242690,-2807.01235108,0.00029474,15]
[328584054,1717570242699,-160.9095324,0.00029478,2]
[328584055,1717570242709,-162.16546389,0.00029478,2]
[328584056,1717570242718,-3779.9143932,0.00029478,2]
[328584057,1717570242727,-2927.040395,0.0002948,2]
[328584058,1717570242738,-379.37411744,0.0002948,2]
[328584059,1717570242749,-480.7441,0.00029489,2]
[328584060,1717570242758,-334.69666667,0.000295,2]
[328584061,1717570242766,-345.0,0.000295,2]
[328584062,1717570242775,-150.0,0.000295,6]
[328584063,1717570242784,-3779.91439311,0.00029516,2]
[328584064,1717570242793,-153.78842655,0.00029519,2]
[328584065,1717570242802,-4602.48885034,0.00029549,2]
[328584066,1717570242811,-3779.91439311,0.00029555,2]
[328584067,1717570242820,-150.0,0.00029562,7]
[328584068,1717570242829,-800.0,0.00029562,2]
[328584069,1717570242839,-5228.83953961,0.00029562,8]
[328584070,1717570242850,-152.34,0.00029568,2]
[328584071,1717570242858,-751.951492,0.00029569,2]
[328584072,1717570242868,-5394.0896663,0.00029569,2]
[328584073,1717570242877,-288.4223894,0.00029569,2]
[328584074,1717570242886,-155.45874504,0.00029573,2]
[328584075,1717570242896,-155.64304521,0.00029576,2]
[328584076,1717570242905,-155.54456278,0.00029576,2]
[328584077,1717570242915,-796.68381665,0.00029576,2]
[328584078,1717570242924,-1267.17750431,0.00029576,2]
[328584079,1717570242934,-236.36960633,0.00029576,2]
[328584080,1717570242943,-268.72895966,0.00029576,2]
[328584081,1717570242953,-493.74958075,0.00029576,2]
[328584082,1717570242963,-224.88847247,0.00029576,2]
[328584083,1717570242972,-244.13323331,0.00029576,2]
[328584084,1717570242981,-329.96819613,0.00029576,2]
[328584085,1717570242990,-155.87368805,0.00029576,2]
[328584086,1717570242999,-287.50563496,0.00029576,2]
[328584087,1717570243008,-1735.19090979,0.00029576,2]
[328584089,1717570243017,-1246.10966846,0.00029576,2]
[328584092,1717570243026,-228.83631107,0.00029576,2]
[328584094,1717570243036,-2053.7452558,0.00029576,2]
[328584096,1717570243045,-325.53994662,0.00029576,2]
[328584098,1717570243054,-1280.74507322,0.00029576,2]
[328584100,1717570243064,-155.74645844,0.00029576,2]
[328584102,1717570243073,-5285.56169332,0.00029576,2]
[328584104,1717570243082,-198.91019495,0.00029576,2]
[328584106,1717570243091,-1464.08446093,0.00029576,2]
[328584108,1717570243101,-271.81858894,0.00029576,2]
[328584110,1717570243110,-269.07080628,0.00029576,2]
[328584112,1717570243119,-542.09946041,0.00029576,2]
[328584114,1717570243128,-376.68254474,0.00029577,2]
[328584116,1717570243137,-500.0,0.00029577,2]
[328584117,1717570243146,-472.94885985,0.00029577,2]
[328584118,1717570243155,-500.0,0.00029577,2]
[328584119,1717570243164,-514.29439598,0.00029577,2]
[328584120,1717570243173,-500.0,0.00029577,2]
[328584122,1717570243182,-500.0,0.00029577,2]
[328584123,1717570243191,-500.0,0.00029577,2]
[328584124,1717570243200,-168.73168778,0.00029577,2]
[328584125,1717570243209,-470.01743906,0.00029577,2]
[328584126,1717570243218,-257.8719227,0.00029577,2]
[328584128,1717570243227,-161.43537631,0.00029577,2]
[328584130,1717570243236,-150.0,0.00029577,2]
[328584132,1717570243245,-266097.66139503,0.00029578,2]
[328584135,1717570243257,-956.7785478,0.00029578,2]
[328584137,1717570243268,-339.93146439,0.00029578,2]
[328584158,1717570243762,-172.88778776,0.00029144,10]
[328584159,1717570243773,-27.37221224,0.00029144,10]
[328584160,1717570243782,-155.0,0.00029576,2]
[328584161,1717570243791,-172.83778776,0.00029578,2]
[328584162,1717570243813,-3383.29470642,0.00029578,2]
[328584163,1717570243824,-1354.3438743,0.00029578,2]
[328584164,1717570243837,-5170.59724706,0.00029578,2]
[328584165,1717570243851,-4063.97553106,0.00029578,2]
[328584166,1717570243862,-8271.03771966,0.00029578,2]
[328584167,1717570243873,-6101.27848943,0.00029578,2]
[328584168,1717570243884,-836.60016149,0.00029578,2]
[328584172,1717570246627,-354.50548005,0.00029576,2]
[328584173,1717570253728,527.82302186,0.00017259,2]
[328584174,1717570268893,195.60497769,0.00017259,2]
[328584175,1717570281487,3016.6443805,0.00017259,2]
[328584179,1717570599555,-300.0,0.000198,2]
[328584180,1717570599578,-158.26093892,0.000199,2]
[328584181,1717570599600,-257.8719227,0.0002,2]
[328584182,1717570611434,257.78539375,0.0002,2]
[328584183,1717570674201,155.0,0.00019451,2]
[328584184,1717570832410,1266.83994846,0.00019451,2]
[328584185,1717570854405,844.55996564,0.00019451,2]
[328584186,1717570876437,703.79997137,0.00019451,2]
[328584187,1717570894427,366.67978508,0.00019451,2]
[328584188,1717570910410,366.67978508,0.00019451,2]
[328584189,1717570932406,366.67978508,0.00019451,2]
[328584190,1717570952413,366.67978508,0.00019451,2]
[328584191,1717570970414,366.67978508,0.00019451,2]
[328584192,1717570986415,366.67978508,0.00019451,2]
[328584193,1717571004408,366.67978508,0.00019451,2]
[328584194,1717571028418,366.67978508,0.00019451,2]
[328584195,1717571048420,366.67978508,0.00019451,2]
[328584196,1717571072422,366.67978508,0.00019451,2]
[328584197,1717571094422,366.67978508,0.00019451,2]
[328584198,1717571110421,189.32219232,0.00019451,2]
[328584206,1717571238846,155.0,0.0002,15]
[328584207,1717571256846,155.0,0.0002,15]
[328584208,1717571278844,155.0,0.0002,15]
[328584209,1717571296851,155.0,0.0002,15]
[328584210,1717571310870,155.0,0.0002,15]
[328584212,1717571328866,155.0,0.0002,15]
[328584214,1717571346865,155.0,0.0002,15]
[328584224,1717571364885,155.0,0.0002,15]
[328584228,1717571384891,155.0,0.0002,15]
[328584243,1717571432568,-482.87677638,0.00023,2]
[328584244,1717571432580,-617.61894988,0.00023,2]
[328584245,1717571432599,-269.02003079,0.00023,2]
[328584246,1717571432609,-159.59,0.00024384,2]
[328584247,1717571432619,-155.61,0.00024384,2]
[328584248,1717571432628,-651.51,0.00024579,2]
[328584249,1717571432638,-1250.0,0.00025,2]
[328584250,1717571432647,-3748.290628,0.00026364,2]
[328584251,1717571432656,-194.1,0.00026384,2]
[328584252,1717571432665,-169.63,0.00026468,2]
[328584253,1717571432674,-686.95,0.00026496,2]
[328584254,1717571432684,-971.03,0.00026507,2]
[328584255,1717571432693,-250.0,0.00026572,2]
[328584256,1717571432703,-600.0,0.00026591,2]
[328584257,1717571432712,-155.53549949,0.0002662,2]
[328584258,1717571432721,-190.87138958,0.0002662,2]
[328584259,1717571432731,-250.0,0.00026727,2]
[328584260,1717571432740,-250.0,0.00026727,2]
[328584261,1717571432749,-829.19,0.00026792,2]
[328584262,1717571432759,-651.51,0.00026843,2]
[328584263,1717571432769,-1300.0,0.00027,2]
[328584264,1717571432779,-4026.19154543,0.00027,2]
[328584265,1717571432788,-500.0,0.00027123,2]
[328584266,1717571432799,-23890.0,0.00027234,2]
[328584267,1717571432808,-189.55,0.0002727,2]
[328584268,1717571432817,-2593.93,0.00027298,2]
[328584269,1717571432827,-805.91709047,0.0002739,2]
[328584270,1717571432836,-400.0,0.00027545,2]
[328584271,1717571432845,-479.444,0.00028371,2]
[328584272,1717571432855,-1546.0,0.00028371,2]
[328584273,1717571432864,-1660.508,0.00028371,2]
[328584274,1717571432873,-1266.0,0.00028371,2]
[328584275,1717571432883,-164.0,0.00028371,2]
[328584276,1717571432892,-2402.0,0.00028371,2]
[328584277,1717571432901,-446.0,0.00028371,2]
[328584278,1717571432915,-150.0,0.00028371,2]
[328584279,1717571432925,-808.0,0.00028371,2]
[328584280,1717571432934,-216.0,0.00028371,2]
[328584281,1717571432943,-1304.0,0.00028371,2]
[328584282,1717571432953,-3171.0,0.00028371,2]
[328584283,1717571432963,-5147.0,0.00028371,2]
[328584284,1717571432972,-5774.0,0.00028371,2]
[328584285,1717571432981,-37998.0,0.00028371,2]
[328584286,1717571432991,-1470.0,0.00028371,2]
[328584287,1717571433002,-166.89,0.0002879,10]
[328584288,1717571433011,-164.5333,0.000288,2]
[328584292,1717571433234,-4100.0448,0.000288,2]
[328584293,1717571433244,-211.3476,0.000288,2]
[328584294,1717571433254,-5874.59180555,0.000288,2]
[328584295,1717571433263,-1122.80494045,0.000288,2]
[328584296,1717571433272,-2500.0,0.000288,2]
[328584297,1717571433281,-345.22,0.0002889,3]
[328584298,1717571433290,-834.45,0.0002889,10]
[328584299,1717571433299,-777.6653,0.000289,2]
[328584300,1717571433310,-4481.9766,0.000289,2]
[328584301,1717571433319,-8276.82942349,0.000289,2]
[328584302,1717571433332,-897.76498644,0.000289,2]
[328584303,1717571433343,-484.28691844,0.000289,2]
[328584304,1717571433358,-710.59577829,0.000289,2]